[Event "12th Arad Open 2019"]
[Site "Arad"]
[Date "2019.07.27"]
[Round "5.23"]
[White "Kantorik, Marian"]
[Black "Obada, Ema"]
[Result "1/2-1/2"]
[ECO "E32"]
[WhiteElo "2196"]
[BlackElo "1946"]
[Annotator "NA"]
[PlyCount "69"]
[EventDate "2019.07.24"]
[EventType "swiss"]
[EventCountry "ROU"]
[SourceTitle "playchess.com"]
[Source "ChessBase"]
[SourceQuality "1"]
[TimeControl "40/5400+30:900+30"]

1. d4 {[%emt 0:00:00]} Nf6 {[%emt 0:00:00]} 2. c4 {[%emt 0:00:00]} e6 {[%emt 0:00:00]} 3. Nc3 {[%emt 0:00:03]} Bb4 {[%emt 0:00:00]} 4. Qc2 {[%emt 0:00:11]} O-O {[%emt 0:00:07]} 5. e4 {[%emt 0:00:14]} d5 {[%emt 0:00:22]} 6. e5 {[%emt 0:00:12]} Ne4 {[%emt 0:00:08]} 7. Bd3 {[%emt 0:00:10]} f5 {[%emt 0:08:50]} 8. exf6 {[%emt 0:03:44]} Nxf6 {[%emt 0:01:49]} 9. Nf3 {[%emt 0:00:58]} c5 {[%emt 0:01:45]} 10. a3 {[%emt 0:03:29]} dxc4 {[%emt 0:03:45]} 11. Bxc4 {[%emt 0:01:47]} cxd4 {[%emt 0:00:33]} 12. axb4 {[%emt 0:01:05]} dxc3 {[%emt 0:00:21]} 13. bxc3 {[%emt 0:00:26]} Qc7 {[%emt 0:07:34]} 14. Be2 {[%emt 0:16:18]} Nd5 {[%emt 0:04:50]} 15. c4 {[%emt 0:09:04]} Nxb4 {[%emt 0:00:46]} 16. Qb1 {[%emt 0:00:27]} N8c6 {[%emt 0:07:18]} 17. Ng5 {[%emt 0:12:05]} g6 {[%emt 0:00:32]} 18. O-O {[%emt 0:01:13]} e5 {[%emt 0:17:07]} 19. Bf3 {[%emt 0:03:02]} a5 {[%emt 0:06:38]} 20. Bd2 {[%emt 0:10:15]} Bf5 {[%emt 0:10:59]} 21. Be4 {[%emt 0:00:35]} Rae8 {[%emt 0:01:51]} 22. Rd1 {[%emt 0:03:49]} Nd4 {[%emt 0:07:03]} 23. Bxb4 {[%emt 0:02:28]} Bxe4 {[%emt 0:00:09]} 24. Nxe4 {[%emt 0:03:26]} axb4 {[%emt 0:00:04]} 25. Qxb4 {[%emt 0:01:28]} Nc2 {[%emt 0:06:02]} 26. Qa4 {[%emt 0:00:19]} Nxa1 {[%emt 0:01:22]} 27. Nf6+ {[%emt 0:00:07]} Rxf6 {[%emt 0:00:30]} 28. Qxe8+ {[%emt 0:00:05]} Rf8 {[%emt 0:00:08]} 29. Qe6+ {[%emt 0:00:13]} Qf7 {[%emt 0:00:15]} 30. Qxf7+ {[%emt 0:00:46]} Rxf7 {[%emt 0:00:41]} 31. Rxa1 {[%emt 0:00:07]} Rc7 {[%emt 0:00:10]} 32. g3 {[%emt 0:04:39]} Rxc4 {[%emt 0:01:08]} 33. Ra5 {[%emt 0:00:14]} e4 {[%emt 0:00:21]} 34. Rb5 {[%emt 0:00:05]} Rc7 {[%emt 0:00:09]} 35. Re5 {[%emt 0:00:04]} 1/2-1/2

[Event "12th Arad Open 2019"]
[Site "Arad"]
[Date "2019.07.27"]
[Round "5.24"]
[White "Veress, Armand"]
[Black "Kelly, Ladislau-Endre"]
[Result "1/2-1/2"]
[ECO "B07"]
[WhiteElo "1827"]
[BlackElo "2182"]
[Annotator "NA"]
[PlyCount "70"]
[EventDate "2019.07.24"]
[EventType "swiss"]
[EventCountry "ROU"]
[SourceTitle "playchess.com"]
[Source "ChessBase"]
[SourceQuality "1"]
[TimeControl "40/5400+30:900+30"]

1. e4 {[%emt 0:00:00]} d6 {[%emt 0:05:54]} 2. d4 {[%emt 0:00:05]} Nf6 {[%emt 0:00:05]} 3. Nc3 {[%emt 0:00:29]} e5 {[%emt 0:00:06]} 4. Nf3 {[%emt 0:01:41]} exd4 {[%emt 0:00:14]} 5. Nxd4 {[%emt 0:00:27]} Be7 {[%emt 0:00:13]} 6. Bc4 {[%emt 0:09:48]} O-O {[%emt 0:01:12]} 7. Bb3 {[%emt 0:00:21]} Nc6 {[%emt 0:00:31]} 8. O-O {[%emt 0:01:20]} Nxd4 {[%emt 0:02:05]} 9. Qxd4 {[%emt 0:00:09]} Be6 {[%emt 0:00:02]} 10. f4 {[%emt 0:05:56]} Re8 {[%emt 0:05:15]} 11. Bd2 {[%emt 0:07:14]} c6 {[%emt 0:13:39]} 12. Qd3 {[%emt 0:04:51]} Qc7 {[%emt 0:18:04]} 13. Rae1 {[%emt 0:02:24]} Bxb3 {[%emt 0:00:55]} 14. axb3 {[%emt 0:00:10]} Rad8 {[%emt 0:00:26]} 15. Qg3 {[%emt 0:02:20]} Bf8 {[%emt 0:13:30]} 16. f5 {[%emt 0:07:47]} Nd7 {[%emt 0:06:07]} 17. f6 {[%emt 0:13:42]} Re6 {[%emt 0:02:43]} 18. Bg5 {[%emt 0:00:48]} Rde8 {[%emt 0:01:26]} 19. h4 {[%emt 0:03:18]} h6 {[%emt 0:04:46]} 20. fxg7 {[%emt 0:19:01]} Bxg7 {[%emt 0:00:05]} 21. Bd2 {[%emt 0:00:53]} Nf6 {[%emt 0:08:14]} 22. Qf3 {[%emt 0:01:11]} Qe7 {[%emt 0:00:35]} 23. h5 {[%emt 0:02:19]} Re5 {[%emt 0:00:38]} 24. Bxh6 {[%emt 0:06:24]} Bxh6 {[%emt 0:00:24]} 25. Qxf6 {[%emt 0:00:06]} Qxf6 {[%emt 0:04:37]} 26. Rxf6 {[%emt 0:00:06]} R8e6 {[%emt 0:00:52]} 27. Ref1 {[%emt 0:00:48]} Be3+ {[%emt 0:02:14]} 28. Kh2 {[%emt 0:00:06]} Rxh5+ {[%emt 0:00:05]} 29. Kg3 {[%emt 0:00:04]} Rg5+ {[%emt 0:01:31]} 30. Kh3 {[%emt 0:01:27]} Rh5+ {[%emt 0:04:49]} 31. Kg4 {[%emt 0:00:44]} Rg5+ {[%emt 0:00:12]} 32. Kh3 {[%emt 0:00:04]} Rh5+ {[%emt 0:00:26]} 33. Kg4 {[%emt 0:00:05]} Rg5+ {[%emt 0:00:24]} 34. Kh3 {[%emt 0:00:04]} Bd4 35. Rxe6 fxe6 1/2-1/2

[Event "12th Arad Open 2019"]
[Site "Arad"]
[Date "2019.07.27"]
[Round "5.26"]
[White "Gratze, Michael"]
[Black "Song, Raymond"]
[Result "0-1"]
[ECO "B06"]
[WhiteElo "2037"]
[BlackElo "2456"]
[Annotator "ChessBase"]
[PlyCount "82"]
[EventDate "2019.07.24"]
[EventType "swiss"]
[EventCountry "ROU"]
[SourceTitle "playchess.com"]
[Source "ChessBase"]
[SourceQuality "1"]
[TimeControl "40/5400+30:900+30"]

1. e4 {[%emt 0:00:00]} g6 {[%emt 0:00:00]} 2. d4 {[%emt 0:00:00]} Bg7 {[%emt 0:00:00]} 3. Nf3 {[%emt 0:00:00]} d6 {[%emt 0:00:00]} 4. Be3 {[%emt 0:00:00]} Nd7 {[%emt 0:02:35]} 5. Qd2 {[%emt 0:00:40]} Ngf6 {[%emt 0:11:50]} 6. Nc3 {[%emt 0:01:05]} Ng4 {[%emt 0:00:30]} 7. Bg5 {[%emt 0:01:02]} h6 {[%emt 0:00:07]} 8. Bh4 {[%emt 0:00:31]} c5 {[%emt 0:00:07]} 9. h3 {[%emt 0:01:35]} cxd4 {[%emt 0:00:10]} 10. Nd5 {[%emt 0:03:13]} Ngf6 {[%emt 0:04:03]} 11. Nxd4 {[%emt 0:05:20]} Nxe4 {[%emt 0:06:06]} 12. Qb4 {[%emt 0:00:53]} Nef6 {[%emt 0:02:33]} 13. Nxf6+ {[%emt 0:06:35]} Nxf6 {[%emt 0:01:44]} 14. O-O-O {[%emt 0:01:13]} O-O {[%emt 0:00:14]} 15. Bc4 {[%emt 0:01:05]} a5 {[%emt 0:01:43]} 16. Qa3 {[%emt 0:01:17]} Bd7 {[%emt 0:03:14]} 17. Rhe1 {[%emt 0:05:47]} Rc8 {[%emt 0:01:41]} 18. Bb5 {[%emt 0:03:31]} Bxb5 {[%emt 0:01:05]} 19. Nxb5 {[%emt 0:00:05]} Rc4 {[%emt 0:02:53]} 20. Bg3 {[%emt 0:02:44]} Qd7 {[%emt 0:03:46]} 21. Nd4 {[%emt 0:01:33]} Rfc8 {[%emt 0:02:00]} 22. Kb1 {[%emt 0:01:24]} Nh5 {[%emt 0:03:46]} 23. c3 {[%emt 0:01:48]} Nxg3 {[%emt 0:00:09]} 24. fxg3 {[%emt 0:00:03]} Bxd4 {[%emt 0:04:50]} 25. cxd4 {[%emt 0:00:28]} Qf5+ {[%emt 0:00:11]} 26. Ka1 {[%emt 0:00:31]} Qf2 {[%emt 0:00:51]} 27. Qxa5 {[%emt 0:01:50]} Qxg2 {[%emt 0:02:41]} 28. a3 {[%emt 0:00:21]} e6 {[%emt 0:01:43]} 29. Qb6 {[%emt 0:00:49]} Qd5 {[%emt 0:01:58]} 30. Qb3 {[%emt 0:01:31]} b5 {[%emt 0:01:22]} 31. Qe3 {[%emt 0:00:19]} b4 {[%emt 0:00:41]} 32. Rd3 {[%emt 0:01:17]} bxa3 {[%emt 0:04:23]} 33. Rxa3 {[%emt 0:00:08]} h5 {[%emt 0:02:52]} 34. Rd1 {[%emt 0:01:59]} e5 {[%emt 0:00:17]} 35. Rf1 {[%emt 0:01:19]} Rxd4 {[%emt 0:00:37]} 36. Ra7 {[%emt 0:01:17]} Rd1+ {[%emt 0:00:23]} 37. Rxd1 {[%emt 0:00:06]} Qxd1+ {[%emt 0:00:03]} 38. Ka2 {[%emt 0:00:12]} Rc1 {[%emt 0:01:23]} 39. Ka3 {[%emt 0:01:14]} Kg7 {[%emt 0:00:52]} 40. Qf2 {[%emt 0:00:00]} Qd3+ {[%emt 0:00:00]} 41. Ka2 {[%emt 0:01:41]} Qc4+ {[%emt 0:00:27]} 0-1

[Event "12th Arad Open 2019"]
[Site "Arad"]
[Date "2019.07.27"]
[Round "5.27"]
[White "Martinovici, Ilie"]
[Black "Breitkopf, Francisc"]
[Result "1-0"]
[ECO "D35"]
[WhiteElo "2407"]
[BlackElo "1994"]
[Annotator "NA"]
[PlyCount "85"]
[EventDate "2019.07.24"]
[EventType "swiss"]
[EventCountry "ROU"]
[SourceTitle "playchess.com"]
[Source "ChessBase"]
[SourceQuality "1"]
[TimeControl "40/5400+30:900+30"]

1. d4 {[%emt 0:00:00]} e6 {[%emt 0:00:15]} 2. c4 {[%emt 0:00:00]} d5 {[%emt 0:01:46]} 3. Nc3 {[%emt 0:00:00]} Nf6 {[%emt 0:00:25]} 4. cxd5 {[%emt 0:00:07]} exd5 {[%emt 0:00:07]} 5. Bg5 {[%emt 0:00:06]} c6 {[%emt 0:00:36]} 6. e3 {[%emt 0:00:08]} Bd6 {[%emt 0:03:28]} 7. Qc2 {[%emt 0:00:55]} Be6 {[%emt 0:04:59]} 8. Bd3 {[%emt 0:00:35]} Nbd7 {[%emt 0:02:08]} 9. Nge2 {[%emt 0:00:46]} h6 {[%emt 0:10:37]} 10. Bf4 {[%emt 0:00:21]} Nb6 {[%emt 0:06:44]} 11. O-O {[%emt 0:04:45]} O-O {[%emt 0:09:33]} 12. Na4 {[%emt 0:03:11]} Nxa4 {[%emt 0:04:20]} 13. Qxa4 {[%emt 0:00:07]} a5 {[%emt 0:03:23]} 14. Rac1 {[%emt 0:01:46]} b5 {[%emt 0:00:47]} 15. Qc2 {[%emt 0:00:31]} Rc8 {[%emt 0:00:21]} 16. a4 {[%emt 0:01:22]} Be7 {[%emt 0:03:13]} 17. Qb3 {[%emt 0:02:44]} Ne4 {[%emt 0:01:24]} 18. Rc2 {[%emt 0:01:35]} Bb4 {[%emt 0:05:22]} 19. Qa2 {[%emt 0:06:50]} Qb6 {[%emt 0:06:09]} 20. Rfc1 {[%emt 0:00:51]} Qb7 {[%emt 0:07:33]} 21. Nc3 {[%emt 0:00:45]} Nxc3 {[%emt 0:06:37]} 22. bxc3 {[%emt 0:00:09]} Be7 {[%emt 0:00:16]} 23. axb5 {[%emt 0:00:52]} cxb5 {[%emt 0:00:55]} 24. Qxa5 {[%emt 0:00:16]} Bd7 {[%emt 0:01:42]} 25. Qa2 {[%emt 0:01:45]} Ra8 {[%emt 0:00:43]} 26. Qb1 {[%emt 0:00:08]} Ra3 {[%emt 0:02:03]} 27. Rb2 {[%emt 0:00:35]} Ra5 {[%emt 0:00:22]} 28. Re2 {[%emt 0:04:54]} f5 {[%emt 0:05:24]} 29. Ra2 {[%emt 0:01:26]} Rxa2 {[%emt 0:01:19]} 30. Qxa2 {[%emt 0:00:15]} Ra8 {[%emt 0:01:34]} 31. Qb1 {[%emt 0:00:09]} Rf8 {[%emt 0:01:26]} 32. Qb3 {[%emt 0:03:19]} Ra8 {[%emt 0:02:32]} 33. h3 {[%emt 0:02:12]} Kh8 {[%emt 0:02:46]} 34. Rb1 {[%emt 0:02:01]} Ra5 {[%emt 0:02:02]} 35. Be5 {[%emt 0:00:49]} Qc6 {[%emt 0:01:22]} 36. Qb2 {[%emt 0:00:36]} Ba3 {[%emt 0:00:38]} 37. Qc2 {[%emt 0:00:35]} Qc8 {[%emt 0:00:11]} 38. Qb3 {[%emt 0:01:40]} Qc6 {[%emt 0:00:16]} 39. Ra1 {[%emt 0:00:33]} Bb4 {[%emt 0:02:06]} 40. Rxa5 {[%emt 0:00:00]} Bxa5 {[%emt 0:00:00]} 41. Qa3 {[%emt 0:00:12]} Qa8 {[%emt 0:06:24]} 42. Qa4 Kg8 43. Qb3 1-0

[Event "12th Arad Open 2019"]
[Site "Arad"]
[Date "2019.07.27"]
[Round "5.29"]
[White "Gorodetzky, Matan"]
[Black "Panush, Viktor"]
[Result "1-0"]
[ECO "B07"]
[WhiteElo "2290"]
[BlackElo "1957"]
[Annotator "NA"]
[PlyCount "65"]
[EventDate "2019.07.24"]
[EventType "swiss"]
[EventCountry "ROU"]
[SourceTitle "playchess.com"]
[Source "ChessBase"]
[SourceQuality "1"]
[TimeControl "40/5400+30:900+30"]

1. e4 {[%emt 0:00:00]} d6 {[%emt 0:00:06]} 2. d4 {[%emt 0:00:23]} Nf6 {[%emt 0:00:16]} 3. Nc3 {[%emt 0:00:15]} c6 {[%emt 0:00:16]} 4. Nf3 {[%emt 0:00:43]} Bg4 {[%emt 0:02:12]} 5. h3 {[%emt 0:00:49]} Bh5 {[%emt 0:00:54]} 6. Qe2 {[%emt 0:00:51]} e6 {[%emt 0:01:49]} 7. g4 {[%emt 0:00:43]} Bg6 {[%emt 0:00:20]} 8. h4 {[%emt 0:00:18]} h5 {[%emt 0:02:26]} 9. g5 {[%emt 0:00:15]} Nfd7 {[%emt 0:01:03]} 10. Bh3 {[%emt 0:01:15]} Be7 {[%emt 0:03:47]} 11. O-O {[%emt 0:01:00]} Qb6 {[%emt 0:02:58]} 12. a4 {[%emt 0:31:00]} Qa6 {[%emt 0:01:54]} 13. Qd1 {[%emt 0:04:43]} b5 {[%emt 0:00:45]} 14. Nd2 {[%emt 0:01:50]} b4 {[%emt 0:04:03]} 15. Ne2 {[%emt 0:00:14]} d5 {[%emt 0:05:17]} 16. Nf4 {[%emt 0:04:37]} Nf8 {[%emt 0:02:58]} 17. Qf3 {[%emt 0:02:41]} Nbd7 {[%emt 0:03:10]} 18. Re1 {[%emt 0:01:33]} Qb6 {[%emt 0:06:25]} 19. c3 {[%emt 0:00:36]} a5 {[%emt 0:01:48]} 20. Qe3 {[%emt 0:03:40]} Qd8 {[%emt 0:07:06]} 21. c4 {[%emt 0:04:44]} dxc4 {[%emt 0:12:44]} 22. Nxc4 {[%emt 0:00:22]} Qc7 {[%emt 0:00:17]} 23. b3 {[%emt 0:01:35]} Bh7 {[%emt 0:02:59]} 24. Qg3 {[%emt 0:07:47]} Bg8 {[%emt 0:06:37]} 25. d5 {[%emt 0:12:11]} Nc5 {[%emt 0:16:50]} 26. Bb2 {[%emt 0:00:51]} f6 {[%emt 0:04:05]} 27. d6 {[%emt 0:04:10]} Bxd6 {[%emt 0:00:59]} 28. Nxd6+ {[%emt 0:00:23]} Qxd6 {[%emt 0:00:53]} 29. gxf6 {[%emt 0:00:13]} gxf6 {[%emt 0:03:25]} 30. Bxf6 {[%emt 0:00:15]} Rh6 {[%emt 0:01:15]} 31. e5 {[%emt 0:00:29]} Qd4 {[%emt 0:01:52]} 32. Rad1 {[%emt 0:00:10]} Qc3 {[%emt 0:01:30]} 33. Qxg8 {[%emt 0:00:23]} 1-0

[Event "12th Arad Open 2019"]
[Site "Arad"]
[Date "2019.07.27"]
[Round "5.30"]
[White "Talu, Mircea"]
[Black "Stanciu, Andreea-Briana"]
[Result "1-0"]
[ECO "D31"]
[WhiteElo "2278"]
[BlackElo "1917"]
[Annotator "NA"]
[PlyCount "67"]
[EventDate "2019.07.24"]
[EventType "swiss"]
[EventCountry "ROU"]
[SourceTitle "playchess.com"]
[Source "ChessBase"]
[SourceQuality "1"]
[TimeControl "40/5400+30:900+30"]

1. d4 {[%emt 0:00:00]} d5 {[%emt 0:11:48]} 2. c4 {[%emt 0:00:00]} e6 {[%emt 0:00:04]} 3. Nc3 {[%emt 0:00:04]} c6 {[%emt 0:00:23]} 4. Nf3 {[%emt 0:02:49]} dxc4 {[%emt 0:04:32]} 5. e4 {[%emt 0:05:56]} b5 {[%emt 0:00:13]} 6. Be2 {[%emt 0:00:06]} Bb7 {[%emt 0:01:20]} 7. O-O {[%emt 0:02:09]} Bb4 {[%emt 0:02:21]} 8. e5 {[%emt 0:08:40]} Bxc3 {[%emt 0:02:57]} 9. bxc3 {[%emt 0:00:07]} Ne7 {[%emt 0:00:06]} 10. Ng5 {[%emt 0:00:46]} Nd7 {[%emt 0:20:04]} 11. Ne4 {[%emt 0:19:58]} O-O {[%emt 0:11:13]} 12. Ba3 {[%emt 0:00:06]} c5 {[%emt 0:01:40]} 13. Nxc5 {[%emt 0:00:33]} Nxc5 {[%emt 0:00:10]} 14. Bxc5 {[%emt 0:00:08]} Re8 {[%emt 0:01:19]} 15. a4 {[%emt 0:06:25]} a6 {[%emt 0:01:29]} 16. Qd2 {[%emt 0:01:08]} Nd5 {[%emt 0:05:17]} 17. f4 {[%emt 0:00:55]} f5 {[%emt 0:04:31]} 18. exf6 {[%emt 0:06:18]} Nxf6 {[%emt 0:00:30]} 19. Qe3 {[%emt 0:01:14]} Nd5 {[%emt 0:03:12]} 20. Qg3 {[%emt 0:01:43]} Qc7 {[%emt 0:00:34]} 21. Rae1 {[%emt 0:06:42]} Qa5 {[%emt 0:09:30]} 22. axb5 {[%emt 0:01:36]} axb5 {[%emt 0:00:07]} 23. Bh5 {[%emt 0:02:15]} Red8 {[%emt 0:03:07]} 24. Bf3 {[%emt 0:02:52]} Re8 {[%emt 0:02:36]} 25. Be4 {[%emt 0:02:46]} Qc7 {[%emt 0:03:50]} 26. Qf3 {[%emt 0:05:31]} g6 {[%emt 0:02:38]} 27. g4 {[%emt 0:00:17]} Red8 {[%emt 0:06:01]} 28. f5 {[%emt 0:02:37]} Ra2 {[%emt 0:00:09]} 29. Qg3 {[%emt 0:09:21]} Qxg3+ {[%emt 0:00:10]} 30. hxg3 {[%emt 0:00:04]} exf5 {[%emt 0:00:46]} 31. gxf5 {[%emt 0:00:14]} Ba8 {[%emt 0:00:52]} 32. f6 {[%emt 0:03:01]} Rd7 {[%emt 0:00:55]} 33. Bxd5+ {[%emt 0:00:57]} Bxd5 {[%emt 0:00:06]} 34. Re8+ 1-0

[Event "12th Arad Open 2019"]
[Site "Arad"]
[Date "2019.07.27"]
[Round "5.31"]
[White "Vasiesiu, Victor"]
[Black "Ciungan, Diana-Alexandra"]
[Result "1-0"]
[ECO "C84"]
[WhiteElo "2269"]
[BlackElo "1862"]
[Annotator "NA"]
[PlyCount "61"]
[EventDate "2019.07.24"]
[EventType "swiss"]
[EventCountry "ROU"]
[SourceTitle "playchess.com"]
[Source "ChessBase"]
[SourceQuality "1"]
[TimeControl "40/5400+30:900+30"]

1. e4 {[%emt 0:06:16]} e5 {[%emt 0:00:00]} 2. Nf3 {[%emt 0:00:36]} Nc6 {[%emt 0:00:00]} 3. Bb5 {[%emt 0:00:04]} a6 {[%emt 0:00:00]} 4. Ba4 {[%emt 0:00:07]} Nf6 {[%emt 0:00:00]} 5. O-O {[%emt 0:00:26]} Be7 {[%emt 0:00:33]} 6. d3 {[%emt 0:00:12]} b5 {[%emt 0:00:06]} 7. Bb3 {[%emt 0:00:05]} O-O {[%emt 0:00:48]} 8. Nc3 {[%emt 0:00:37]} d6 {[%emt 0:01:01]} 9. a3 {[%emt 0:00:05]} Bg4 {[%emt 0:01:09]} 10. Be3 {[%emt 0:00:06]} Nd4 {[%emt 0:17:18]} 11. Bxd4 {[%emt 0:00:06]} exd4 {[%emt 0:00:03]} 12. Nd5 {[%emt 0:00:06]} c6 {[%emt 0:01:55]} 13. Nxe7+ {[%emt 0:03:32]} Qxe7 {[%emt 0:00:56]} 14. h3 {[%emt 0:00:03]} Bxf3 {[%emt 0:00:04]} 15. Qxf3 {[%emt 0:00:09]} Nd7 {[%emt 0:00:05]} 16. Qg3 {[%emt 0:00:06]} Nc5 {[%emt 0:00:19]} 17. Ba2 {[%emt 0:00:28]} Na4 {[%emt 0:00:51]} 18. Rab1 {[%emt 0:01:22]} Kh8 {[%emt 0:19:07]} 19. f4 {[%emt 0:12:44]} f5 {[%emt 0:07:49]} 20. Rbe1 {[%emt 0:00:10]} Qc7 {[%emt 0:08:48]} 21. exf5 {[%emt 0:07:45]} Rxf5 {[%emt 0:08:06]} 22. Be6 {[%emt 0:00:26]} Rf6 {[%emt 0:00:24]} 23. f5 {[%emt 0:00:06]} Nc5 {[%emt 0:01:23]} 24. Qh4 {[%emt 0:00:52]} Re8 {[%emt 0:26:21]} 25. Qxd4 {[%emt 0:00:14]} h6 {[%emt 0:00:06]} 26. Qg4 {[%emt 0:04:01]} Qe7 {[%emt 0:00:03]} 27. Re2 {[%emt 0:09:56]} Nxe6 {[%emt 0:01:13]} 28. Rfe1 {[%emt 0:01:05]} Qa7+ {[%emt 0:00:17]} 29. Kh2 {[%emt 0:00:32]} Qc5 {[%emt 0:00:46]} 30. Rxe6 {[%emt 0:04:01]} Ref8 {[%emt 0:00:19]} 31. Rxf6 {[%emt 0:00:23]} 1-0

[Event "12th Arad Open 2019"]
[Site "Arad"]
[Date "2019.07.27"]
[Round "5.32"]
[White "Ursente, Tudor-Alexandru"]
[Black "Lyell, Mark"]
[Result "0-1"]
[ECO "A81"]
[WhiteElo "1983"]
[BlackElo "2216"]
[Annotator "NA"]
[PlyCount "68"]
[EventDate "2019.07.24"]
[EventType "swiss"]
[EventCountry "ROU"]
[SourceTitle "playchess.com"]
[Source "ChessBase"]
[SourceQuality "1"]
[TimeControl "40/5400+30:900+30"]

1. d4 {[%emt 0:01:30]} f5 {[%emt 0:00:00]} 2. g3 {[%emt 0:01:25]} Nf6 {[%emt 0:00:15]} 3. Bg2 {[%emt 0:00:05]} e6 {[%emt 0:00:38]} 4. Nf3 {[%emt 0:00:45]} Be7 {[%emt 0:00:29]} 5. b3 {[%emt 0:01:34]} a5 {[%emt 0:01:25]} 6. a4 {[%emt 0:00:13]} O-O {[%emt 0:01:38]} 7. Bb2 {[%emt 0:00:09]} Qe8 {[%emt 0:05:24]} 8. e3 {[%emt 0:02:20]} Nc6 {[%emt 0:01:12]} 9. O-O {[%emt 0:00:34]} d6 {[%emt 0:01:19]} 10. c4 {[%emt 0:05:21]} Nd8 {[%emt 0:08:14]} 11. Nc3 {[%emt 0:01:56]} Nf7 {[%emt 0:00:24]} 12. Qc2 {[%emt 0:01:49]} Nh6 {[%emt 0:19:31]} 13. Nb5 {[%emt 0:17:04]} Bd8 {[%emt 0:00:57]} 14. c5 {[%emt 0:00:29]} d5 {[%emt 0:02:42]} 15. Ba3 {[%emt 0:02:09]} c6 {[%emt 0:03:16]} 16. Nd6 {[%emt 0:00:21]} Qh5 {[%emt 0:01:31]} 17. Qd1 {[%emt 0:10:24]} Bc7 {[%emt 0:11:13]} 18. Nxc8 {[%emt 0:05:42]} Rfxc8 {[%emt 0:03:36]} 19. Bb2 {[%emt 0:01:06]} Nf7 {[%emt 0:00:58]} 20. Ne5 {[%emt 0:02:35]} Qxd1 {[%emt 0:01:07]} 21. Rfxd1 {[%emt 0:00:08]} Nxe5 {[%emt 0:02:17]} 22. dxe5 {[%emt 0:00:02]} Nd7 {[%emt 0:01:20]} 23. Bd4 {[%emt 0:03:06]} Bxe5 {[%emt 0:00:20]} 24. f4 {[%emt 0:00:10]} Bf6 {[%emt 0:00:27]} 25. Rdc1 {[%emt 0:01:07]} Re8 {[%emt 0:06:30]} 26. Rab1 {[%emt 0:03:06]} e5 {[%emt 0:01:41]} 27. fxe5 {[%emt 0:00:18]} Nxe5 {[%emt 0:02:13]} 28. Rf1 {[%emt 0:01:55]} Ng4 {[%emt 0:03:00]} 29. Rxf5 {[%emt 0:08:11]} Nxe3 {[%emt 0:00:28]} 30. Bxe3 {[%emt 0:00:10]} Rxe3 {[%emt 0:00:04]} 31. b4 {[%emt 0:00:28]} Bd4 {[%emt 0:01:59]} 32. Kf1 {[%emt 0:00:08]} axb4 {[%emt 0:04:28]} 33. Rxb4 {[%emt 0:00:09]} Re1+ {[%emt 0:00:47]} 34. Kxe1 {[%emt 0:00:44]} Bc3+ {[%emt 0:00:05]} 0-1

[Event "12th Arad Open 2019"]
[Site "Arad"]
[Date "2019.07.27"]
[Round "5.33"]
[White "Ghimpu, Samuel-Timotei"]
[Black "Morariu, Daniel"]
[Result "1-0"]
[ECO "B40"]
[WhiteElo "2193"]
[BlackElo "1732"]
[Annotator "NA"]
[PlyCount "107"]
[EventDate "2019.07.24"]
[EventType "swiss"]
[EventCountry "ROU"]
[SourceTitle "playchess.com"]
[Source "ChessBase"]
[SourceQuality "1"]
[TimeControl "40/5400+30:900+30"]

1. e4 {[%emt 0:00:00]} c5 {[%emt 0:00:00]} 2. Nf3 {[%emt 0:00:05]} e6 {[%emt 0:00:00]} 3. b3 {[%emt 0:00:15]} Nc6 {[%emt 0:01:01]} 4. Bb2 {[%emt 0:00:04]} Nf6 {[%emt 0:01:29]} 5. e5 {[%emt 0:00:09]} Nd5 {[%emt 0:00:28]} 6. Nc3 {[%emt 0:00:04]} Nxc3 {[%emt 0:04:54]} 7. dxc3 {[%emt 0:00:36]} Qc7 {[%emt 0:01:42]} 8. c4 {[%emt 0:00:08]} b6 {[%emt 0:04:12]} 9. Bd3 {[%emt 0:01:47]} h6 {[%emt 0:00:56]} 10. Qe2 {[%emt 0:00:53]} Bb7 {[%emt 0:00:31]} 11. a3 {[%emt 0:08:51]} g5 {[%emt 0:08:49]} 12. O-O-O {[%emt 0:05:40]} O-O-O {[%emt 0:01:14]} 13. Kb1 {[%emt 0:00:52]} Be7 {[%emt 0:06:32]} 14. Rhe1 {[%emt 0:06:04]} Rhf8 {[%emt 0:03:51]} 15. Nd2 {[%emt 0:05:07]} f6 {[%emt 0:03:18]} 16. exf6 {[%emt 0:01:31]} Bxf6 {[%emt 0:00:41]} 17. Bxf6 {[%emt 0:00:07]} Rxf6 {[%emt 0:00:10]} 18. Ne4 {[%emt 0:00:06]} Nd4 {[%emt 0:01:35]} 19. Qh5 {[%emt 0:00:10]} Bxe4 {[%emt 0:01:07]} 20. Bxe4 {[%emt 0:00:01]} d5 {[%emt 0:03:21]} 21. Bd3 {[%emt 0:10:53]} Kb8 {[%emt 0:06:18]} 22. f3 {[%emt 0:01:50]} dxc4 {[%emt 0:08:52]} 23. Bxc4 {[%emt 0:01:24]} b5 {[%emt 0:00:17]} 24. Bf1 {[%emt 0:01:41]} e5 {[%emt 0:13:43]} 25. h4 {[%emt 0:00:39]} Rg8 {[%emt 0:03:23]} 26. hxg5 {[%emt 0:02:38]} hxg5 {[%emt 0:02:25]} 27. Re3 {[%emt 0:01:28]} c4 {[%emt 0:06:11]} 28. b4 {[%emt 0:20:06]} Kb7 {[%emt 0:06:54]} 29. Rde1 {[%emt 0:08:27]} Nc6 {[%emt 0:00:50]} 30. g3 {[%emt 0:00:35]} Rgg6 {[%emt 0:04:35]} 31. f4 {[%emt 0:05:44]} exf4 {[%emt 0:01:44]} 32. gxf4 {[%emt 0:00:09]} Qxf4 {[%emt 0:02:20]} 33. Bg2 {[%emt 0:00:49]} Kb6 {[%emt 0:00:37]} 34. Qh8 {[%emt 0:05:50]} Rf8 {[%emt 0:01:40]} 35. Qh7 {[%emt 0:00:06]} Qf7 {[%emt 0:00:54]} 36. Qh5 {[%emt 0:00:37]} Rg7 {[%emt 0:00:45]} 37. Qh2 {[%emt 0:02:50]} Qf4 {[%emt 0:00:28]} 38. Qh6 {[%emt 0:00:52]} Qf6 {[%emt 0:00:13]} 39. Re6 {[%emt 0:00:23]} Qxh6 {[%emt 0:00:32]} 40. Rxh6 {[%emt 0:00:00]} Rc7 {[%emt 0:00:00]} 41. Ree6 {[%emt 0:00:11]} Rfc8 {[%emt 0:01:54]} 42. Kc1 {[%emt 0:00:47]} c3 {[%emt 0:05:05]} 43. Kb1 {[%emt 0:00:13]} a5 {[%emt 0:00:23]} 44. Ka2 {[%emt 0:01:27]} a4 {[%emt 0:02:44]} 45. Kb1 {[%emt 0:00:06]} Kb7 {[%emt 0:02:51]} 46. Kc1 {[%emt 0:03:10]} g4 {[%emt 0:01:01]} 47. Rhg6 {[%emt 0:00:11]} Kb6 {[%emt 0:02:54]} 48. Rd6 {[%emt 0:00:46]} g3 {[%emt 0:01:34]} 49. Kd1 {[%emt 0:00:26]} Kb7 {[%emt 0:01:54]} 50. Ke2 {[%emt 0:00:31]} Re7+ {[%emt 0:00:32]} 51. Kd3 {[%emt 0:00:01]} Rec7 {[%emt 0:00:35]} 52. Kxc3 {[%emt 0:00:06]} Kb6 {[%emt 0:00:16]} 53. Kd3 {[%emt 0:00:11]} Kb7 {[%emt 0:00:31]} 54. c4 {[%emt 0:00:27]} 1-0